[Event "Late-Titled-Tuesday-Blitz-October-03-2023"]
[Site "Chess.com"]
[Date "2023.10.03"]
[Round "3"]
[White "Mykola-Bortnyk"]
[Black "jaskol95"]
[Result "1-0"]
[WhiteElo "2948"]
[BlackElo "2638"]
[TimeControl "180+1"]
[EndTime "14:26:35 PDT"]
[Termination "Mykola-Bortnyk won by resignation"]

1. e4 {[%clk 0:03:00.9]} 1... d5 {[%clk 0:02:59.4]} 2. exd5 {[%clk 0:03:00.8]}
2... Nf6 {[%clk 0:02:59.7]} 3. Nc3 {[%clk 0:03:00.6]} 3... Nxd5 {[%clk
0:02:59.8]} 4. Bc4 {[%clk 0:03:00.9]} 4... Nb6 {[%clk 0:02:57.7]} 5. Bb3 {[%clk
0:03:01.3]} 5... Nc6 {[%clk 0:02:56.7]} 6. Nf3 {[%clk 0:02:51]} 6... Bf5 {[%clk
0:02:56.2]} 7. O-O {[%clk 0:02:49.2]} 7... e6 {[%clk 0:02:56.6]} 8. d4 {[%clk
0:02:48.8]} 8... Be7 {[%clk 0:02:53.2]} 9. Bf4 {[%clk 0:02:38.1]} 9... O-O
{[%clk 0:02:47.3]} 10. h3 {[%clk 0:02:21.7]} 10... Nd5 {[%clk 0:02:37.2]} 11.
Bg3 {[%clk 0:02:13.5]} 11... Nxc3 {[%clk 0:02:35.4]} 12. bxc3 {[%clk 0:02:13.9]}
12... Bd6 {[%clk 0:02:32.9]} 13. Qe2 {[%clk 0:02:07.3]} 13... Bxg3 {[%clk
0:02:31.8]} 14. fxg3 {[%clk 0:02:08.2]} 14... Qd6 {[%clk 0:02:24.8]} 15. g4
{[%clk 0:02:07.3]} 15... Bg6 {[%clk 0:02:24.8]} 16. Rae1 {[%clk 0:02:06.7]}
16... Rad8 {[%clk 0:02:14.3]} 17. h4 {[%clk 0:01:59.3]} 17... h5 {[%clk
0:01:57.6]} 18. Ng5 {[%clk 0:01:54.5]} 18... Qg3 {[%clk 0:01:22.2]} 19. gxh5
{[%clk 0:01:43.7]} 19... Bf5 {[%clk 0:01:22.2]} 20. Qf2 {[%clk 0:01:12.4]} 20...
Qxf2+ {[%clk 0:00:49.8]} 21. Rxf2 {[%clk 0:01:13.3]} 21... Bg4 {[%clk
0:00:50.5]} 22. Rf4 {[%clk 0:01:09]} 22... Bxh5 {[%clk 0:00:48]} 23. g4 {[%clk
0:01:08.8]} 23... Bg6 {[%clk 0:00:46.6]} 24. h5 {[%clk 0:01:09.5]} 24... Bh7
{[%clk 0:00:45.5]} 25. Rxf7 {[%clk 0:00:51]} 25... Rxf7 {[%clk 0:00:39.2]} 26.
Bxe6 {[%clk 0:00:51.4]} 26... Rf8 {[%clk 0:00:32.9]} 27. Bxf7+ {[%clk
0:00:41.5]} 27... Rxf7 {[%clk 0:00:32.9]} 28. Re8+ {[%clk 0:00:42.3]} 28... Rf8
{[%clk 0:00:33.6]} 29. Rxf8+ {[%clk 0:00:42.8]} 29... Kxf8 {[%clk 0:00:34.5]}
30. Nxh7+ {[%clk 0:00:43.2]} 30... Ke7 {[%clk 0:00:23.3]} 31. Kf2 {[%clk
0:00:41.7]} 31... Nd8 {[%clk 0:00:17.1]} 32. Ng5 {[%clk 0:00:41.6]} 32... c5
{[%clk 0:00:17.5]} 33. Ke3 {[%clk 0:00:38.6]} 33... cxd4+ {[%clk 0:00:17.6]} 34.
cxd4 {[%clk 0:00:39]} 34... Kf6 {[%clk 0:00:17.5]} 35. Kf4 {[%clk 0:00:38.3]}
35... Nc6 {[%clk 0:00:16.6]} 36. Ne4+ {[%clk 0:00:37.3]} 36... Ke6 {[%clk
0:00:16.3]} 37. c3 {[%clk 0:00:37.8]} 37... Ne7 {[%clk 0:00:15.1]} 38. c4 {[%clk
0:00:36.5]} 38... Kf7 {[%clk 0:00:14.6]} 39. d5 {[%clk 0:00:36.6]} 39... Nc8
{[%clk 0:00:13.7]} 40. Ke5 {[%clk 0:00:36]} 40... Nb6 {[%clk 0:00:14]} 41. Kd4
{[%clk 0:00:35.2]} 41... Nd7 {[%clk 0:00:14]} 42. c5 {[%clk 0:00:34.8]} 42... a6
{[%clk 0:00:12]} 43. c6 {[%clk 0:00:34.7]} 43... bxc6 {[%clk 0:00:12.1]} 44.
dxc6 {[%clk 0:00:35.6]} 44... Nb6 {[%clk 0:00:12.2]} 45. Kc5 {[%clk 0:00:34.2]}
45... Na4+ {[%clk 0:00:10]} 46. Kd6 {[%clk 0:00:34.2]} 46... Nb6 {[%clk
0:00:09.9]} 47. c7 {[%clk 0:00:34.1]} 47... Nc8+ {[%clk 0:00:10.5]} 48. Kd7
{[%clk 0:00:34.7]} 48... Nb6+ {[%clk 0:00:10.5]} 49. Kc6 {[%clk 0:00:35.3]}
49... Nc8 {[%clk 0:00:10.6]} 50. Nd6+ {[%clk 0:00:36.1]} 50... Nxd6 {[%clk
0:00:10.5]} 51. Kxd6 {[%clk 0:00:37]} 1-0

[Event "Late-Titled-Tuesday-Blitz-October-03-2023"]
[Site "Chess.com"]
[Date "2023.10.03"]
[Round "3"]
[White "esskeettit"]
[Black "matagordo"]
[Result "0-1"]
[WhiteElo "2464"]
[BlackElo "2220"]
[TimeControl "180+1"]
[EndTime "14:26:40 PDT"]
[Termination "matagordo won by resignation"]

1. d4 {[%clk 0:01:57.7]} 1... e6 {[%clk 0:03:00]} 2. c4 {[%clk 0:01:57.3]} 2...
Nf6 {[%clk 0:03:00.4]} 3. Nc3 {[%clk 0:01:57.4]} 3... Bb4 {[%clk 0:03:00.7]} 4.
Qc2 {[%clk 0:01:57.8]} 4... d5 {[%clk 0:02:59.1]} 5. cxd5 {[%clk 0:01:57.7]}
5... exd5 {[%clk 0:03:00]} 6. Bg5 {[%clk 0:01:53.2]} 6... c6 {[%clk 0:02:58.6]}
7. e3 {[%clk 0:01:51.4]} 7... h6 {[%clk 0:02:58.5]} 8. Bh4 {[%clk 0:01:50.8]}
8... O-O {[%clk 0:02:58]} 9. Bd3 {[%clk 0:01:50.4]} 9... Nbd7 {[%clk 0:02:57.9]}
10. Ne2 {[%clk 0:01:50]} 10... Re8 {[%clk 0:02:49]} 11. O-O {[%clk 0:01:48.2]}
11... Be7 {[%clk 0:02:49.2]} 12. f3 {[%clk 0:01:46.5]} 12... Nh5 {[%clk
0:02:28.9]} 13. Bf2 {[%clk 0:01:45.3]} 13... Bh4 {[%clk 0:02:26.8]} 14. Ng3
{[%clk 0:01:43.2]} 14... Qg5 {[%clk 0:02:19.7]} 15. Nxh5 {[%clk 0:00:57.3]}
15... Qxh5 {[%clk 0:02:20.6]} 16. e4 {[%clk 0:00:52.1]} 16... Nf6 {[%clk
0:02:07.2]} 17. e5 {[%clk 0:00:50.4]} 17... Nd7 {[%clk 0:02:03]} 18. g3 {[%clk
0:00:33.5]} 18... Be7 {[%clk 0:01:53.4]} 19. f4 {[%clk 0:00:31.9]} 19... b5
{[%clk 0:01:10.3]} 20. Be2 {[%clk 0:00:23.1]} 20... Qh3 {[%clk 0:00:59.5]} 21.
f5 {[%clk 0:00:14.9]} 21... Bf8 {[%clk 0:00:59.8]} 22. Be3 {[%clk 0:00:13.3]}
22... b4 {[%clk 0:00:56.2]} 23. Nd1 {[%clk 0:00:13.6]} 23... c5 {[%clk
0:00:40.3]} 24. Nf2 {[%clk 0:00:13.1]} 24... cxd4 {[%clk 0:00:26.8]} 25. Nxh3
{[%clk 0:00:12.4]} 25... dxe3 {[%clk 0:00:27.5]} 26. e6 {[%clk 0:00:10.9]} 26...
fxe6 {[%clk 0:00:24.3]} 27. fxe6 {[%clk 0:00:11.2]} 27... Rxe6 {[%clk 0:00:25]}
28. Nf4 {[%clk 0:00:11.6]} 28... Re8 {[%clk 0:00:23.2]} 29. Bh5 {[%clk
0:00:09.1]} 29... Re5 {[%clk 0:00:20.4]} 30. Bg6 {[%clk 0:00:08.1]} 30... Nf6
{[%clk 0:00:20.2]} 31. Nd3 {[%clk 0:00:05.9]} 31... Rg5 {[%clk 0:00:17.7]} 32.
Rxf6 {[%clk 0:00:03.6]} 32... gxf6 {[%clk 0:00:17.4]} 33. Nf4 {[%clk 0:00:03.9]}
33... Bd6 {[%clk 0:00:17]} 34. Bh7+ {[%clk 0:00:03.2]} 34... Kg7 {[%clk
0:00:15.1]} 35. Bd3 {[%clk 0:00:04.1]} 35... Bxf4 {[%clk 0:00:14.3]} 36. Qc6
{[%clk 0:00:04.1]} 36... Rb8 {[%clk 0:00:13.3]} 37. Qxd5 {[%clk 0:00:04.5]}
37... Rxd5 {[%clk 0:00:12.3]} 0-1

[Event "Late-Titled-Tuesday-Blitz-October-03-2023"]
[Site "Chess.com"]
[Date "2023.10.03"]
[Round "3"]
[White "Metadast"]
[Black "IPAchess"]
[Result "1-0"]
[WhiteElo "2539"]
[BlackElo "2320"]
[TimeControl "180+1"]
[EndTime "14:26:43 PDT"]
[Termination "Metadast won on time"]

1. e4 {[%clk 0:03:00.5]} 1... e5 {[%clk 0:02:55.9]} 2. f4 {[%clk 0:02:58.9]}
2... exf4 {[%clk 0:02:54.6]} 3. Nf3 {[%clk 0:02:58.2]} 3... Nf6 {[%clk
0:02:55.1]} 4. e5 {[%clk 0:02:56.9]} 4... Nh5 {[%clk 0:02:49.9]} 5. d4 {[%clk
0:02:52.2]} 5... d5 {[%clk 0:02:38.8]} 6. c4 {[%clk 0:02:51.1]} 6... Nc6 {[%clk
0:02:24.6]} 7. Nc3 {[%clk 0:02:20.5]} 7... Bb4 {[%clk 0:02:10.9]} 8. a3 {[%clk
0:02:10.5]} 8... Bxc3+ {[%clk 0:02:09.5]} 9. bxc3 {[%clk 0:02:11.4]} 9... O-O
{[%clk 0:02:09.9]} 10. Bd3 {[%clk 0:01:47.9]} 10... f6 {[%clk 0:02:01.9]} 11.
O-O {[%clk 0:01:31.6]} 11... fxe5 {[%clk 0:01:57.6]} 12. Nxe5 {[%clk 0:01:27.5]}
12... Nxe5 {[%clk 0:01:55.7]} 13. dxe5 {[%clk 0:01:28.4]} 13... Qh4 {[%clk
0:01:44.5]} 14. cxd5 {[%clk 0:01:21]} 14... f3 {[%clk 0:01:27.4]} 15. Ra2 {[%clk
0:00:46.4]} 15... Bg4 {[%clk 0:01:20.8]} 16. Qe1 {[%clk 0:00:38.2]} 16... Qe7
{[%clk 0:00:59.3]} 17. c4 {[%clk 0:00:23.2]} 17... fxg2 {[%clk 0:00:48.2]} 18.
Rxf8+ {[%clk 0:00:16]} 18... Rxf8 {[%clk 0:00:48.6]} 19. Rxg2 {[%clk 0:00:14.7]}
19... Bh3 {[%clk 0:00:43.1]} 20. Qe4 {[%clk 0:00:09]} 20... Bf5 {[%clk
0:00:28.5]} 21. Qd4 {[%clk 0:00:05.3]} 21... c5 {[%clk 0:00:18.8]} 22. d6 {[%clk
0:00:02.6]} 22... Qe6 {[%clk 0:00:10.9]} 23. Bxf5 {[%clk 0:00:02.7]} 23... Qxf5
{[%clk 0:00:11.8]} 24. Qd5+ {[%clk 0:00:03]} 24... Kh8 {[%clk 0:00:11.1]} 25.
Qd1 {[%clk 0:00:02.9]} 25... Qxe5 {[%clk 0:00:07.5]} 26. d7 {[%clk 0:00:03.8]}
26... g6 {[%clk 0:00:04.9]} 27. Re2 {[%clk 0:00:04.3]} 27... Qf5 {[%clk
0:00:03.5]} 28. Bb2+ {[%clk 0:00:05.2]} 28... Ng7 {[%clk 0:00:03.3]} 29. d8=Q
{[%clk 0:00:05.2]} 29... Qg4+ {[%clk 0:00:02.3]} 30. Kh1 {[%clk 0:00:05.9]}
30... Qf3+ {[%clk 0:00:02.5]} 31. Rg2 {[%clk 0:00:06]} 31... Rxd8 {[%clk
0:00:01.6]} 32. Qxd8+ {[%clk 0:00:05.9]} 1-0

[Event "Late-Titled-Tuesday-Blitz-October-03-2023"]
[Site "Chess.com"]
[Date "2023.10.03"]
[Round "3"]
[White "Korchmar_Vasiliy"]
[Black "rdarruda"]
[Result "1-0"]
[WhiteElo "2704"]
[BlackElo "2474"]
[TimeControl "180+1"]
[EndTime "14:26:44 PDT"]
[Termination "Korchmar_Vasiliy won by resignation"]

1. e4 {[%clk 0:03:00.9]} 1... c5 {[%clk 0:02:54.3]} 2. d4 {[%clk 0:03:00.7]}
2... cxd4 {[%clk 0:02:53.8]} 3. Qxd4 {[%clk 0:03:01.6]} 3... Nc6 {[%clk
0:02:52.3]} 4. Qd3 {[%clk 0:03:02]} 4... Nf6 {[%clk 0:02:52]} 5. Nc3 {[%clk
0:03:02.3]} 5... d6 {[%clk 0:02:50.8]} 6. Nf3 {[%clk 0:03:02.6]} 6... g6 {[%clk
0:02:50.9]} 7. Be2 {[%clk 0:03:02.8]} 7... Bg7 {[%clk 0:02:51.1]} 8. O-O {[%clk
0:03:03.5]} 8... O-O {[%clk 0:02:51.3]} 9. Nd5 {[%clk 0:03:04.3]} 9... b6 {[%clk
0:02:46.1]} 10. c3 {[%clk 0:03:03]} 10... Bb7 {[%clk 0:02:45.1]} 11. Bg5 {[%clk
0:03:03.5]} 11... Nxd5 {[%clk 0:02:40.5]} 12. exd5 {[%clk 0:03:03.7]} 12... Ne5
{[%clk 0:02:40.9]} 13. Nxe5 {[%clk 0:03:03.7]} 13... Bxe5 {[%clk 0:02:41.8]} 14.
h4 {[%clk 0:02:58.1]} 14... Re8 {[%clk 0:02:37.6]} 15. h5 {[%clk 0:02:57.5]}
15... Qd7 {[%clk 0:02:37.2]} 16. Rad1 {[%clk 0:02:50]} 16... Rac8 {[%clk
0:02:34.9]} 17. Bh6 {[%clk 0:02:40.9]} 17... Rc5 {[%clk 0:02:30.4]} 18. Bf3
{[%clk 0:02:29.7]} 18... Qa4 {[%clk 0:02:23.2]} 19. a3 {[%clk 0:01:57.3]} 19...
Qh4 {[%clk 0:02:02.9]} 20. g3 {[%clk 0:01:57]} 20... Qh3 {[%clk 0:01:56.3]} 21.
Be3 {[%clk 0:01:43.2]} 21... Rcc8 {[%clk 0:01:42.1]} 22. Qe2 {[%clk 0:01:43.1]}
22... f5 {[%clk 0:01:29.1]} 23. Bg2 {[%clk 0:01:38.1]} 23... Qxh5 {[%clk
0:01:29.1]} 24. Qxh5 {[%clk 0:01:36.2]} 24... gxh5 {[%clk 0:01:30]} 25. f4
{[%clk 0:01:29.5]} 25... Bf6 {[%clk 0:01:28.6]} 26. Bf3 {[%clk 0:01:29.5]} 26...
h4 {[%clk 0:01:27.1]} 27. gxh4 {[%clk 0:01:23.1]} 27... Bxh4 {[%clk 0:01:28]}
28. Bd4 {[%clk 0:01:23.5]} 28... Bf6 {[%clk 0:01:25.4]} 29. Bxf6 {[%clk
0:01:21]} 29... exf6 {[%clk 0:01:26.3]} 30. Kf2 {[%clk 0:01:10.4]} 30... Rc7
{[%clk 0:01:25.9]} 31. Rh1 {[%clk 0:01:01.9]} 31... Rg7 {[%clk 0:01:22.7]} 32.
Rh6 {[%clk 0:01:01.9]} 32... Rf8 {[%clk 0:01:12.2]} 33. Re1 {[%clk 0:01:02.1]}
33... Bc8 {[%clk 0:01:06.3]} 34. c4 {[%clk 0:00:54.6]} 34... Bd7 {[%clk
0:01:05.8]} 35. b4 {[%clk 0:00:54.1]} 35... Rg6 {[%clk 0:00:59.8]} 36. Rh5
{[%clk 0:00:50.5]} 36... Rg7 {[%clk 0:00:59.4]} 37. Rh6 {[%clk 0:00:44.1]} 37...
Rg6 {[%clk 0:00:58.9]} 38. Rh5 {[%clk 0:00:44.1]} 38... Rg7 {[%clk 0:00:58.5]}
39. Rc1 {[%clk 0:00:33.2]} 39... Rc8 {[%clk 0:00:53.1]} 40. Rh6 {[%clk
0:00:33.7]} 40... Rg6 {[%clk 0:00:52.8]} 41. Rh5 {[%clk 0:00:34.1]} 41... Rg7
{[%clk 0:00:50.8]} 42. Be2 {[%clk 0:00:34.2]} 42... Re8 {[%clk 0:00:46.3]} 43.
Bd3 {[%clk 0:00:33.9]} 43... Rg4 {[%clk 0:00:46.4]} 44. Kf3 {[%clk 0:00:32.7]}
44... Rg7 {[%clk 0:00:42.5]} 45. Bxf5 {[%clk 0:00:31.7]} 45... Bxf5 {[%clk
0:00:42.4]} 46. Rxf5 {[%clk 0:00:32.6]} 46... Rge7 {[%clk 0:00:41.7]} 47. Rxf6
{[%clk 0:00:29.6]} 47... Re3+ {[%clk 0:00:41.5]} 48. Kg4 {[%clk 0:00:30.1]}
48... Rxa3 {[%clk 0:00:40.3]} 49. Rxd6 {[%clk 0:00:30.3]} 49... Rae3 {[%clk
0:00:35.8]} 50. c5 {[%clk 0:00:29.5]} 50... bxc5 {[%clk 0:00:34.8]} 51. bxc5
{[%clk 0:00:30.4]} 51... Kf7 {[%clk 0:00:33.6]} 52. c6 {[%clk 0:00:28]} 52...
Rg8+ {[%clk 0:00:32.2]} 53. Kf5 {[%clk 0:00:28.1]} 53... Rf8 {[%clk 0:00:29.7]}
54. Rf6+ {[%clk 0:00:24.6]} 54... Ke7 {[%clk 0:00:29.2]} 55. Rxf8 {[%clk
0:00:25.5]} 55... Kxf8 {[%clk 0:00:29.2]} 56. c7 {[%clk 0:00:25.4]} 1-0

[Event "Late-Titled-Tuesday-Blitz-October-03-2023"]
[Site "Chess.com"]
[Date "2023.10.03"]
[Round "3"]
[White "falzehope0"]
[Black "reevecanada"]
[Result "0-1"]
[WhiteElo "2363"]
[BlackElo "2561"]
[TimeControl "180+1"]
[EndTime "14:26:46 PDT"]
[Termination "reevecanada won on time"]

1. d4 {[%clk 0:03:00.9]} 1... d5 {[%clk 0:02:59]} 2. e3 {[%clk 0:03:01.8]} 2...
Nf6 {[%clk 0:02:58.5]} 3. Bd3 {[%clk 0:03:02.1]} 3... c5 {[%clk 0:02:58.3]} 4.
c3 {[%clk 0:03:02.1]} 4... Nc6 {[%clk 0:02:58.2]} 5. f4 {[%clk 0:03:02.5]} 5...
e6 {[%clk 0:02:58]} 6. Nf3 {[%clk 0:03:02.9]} 6... b6 {[%clk 0:02:55.4]} 7. O-O
{[%clk 0:03:02.5]} 7... a5 {[%clk 0:02:55.4]} 8. Qe2 {[%clk 0:03:00.6]} 8... c4
{[%clk 0:02:53.8]} 9. Bc2 {[%clk 0:03:00.3]} 9... b5 {[%clk 0:02:54.4]} 10. Nbd2
{[%clk 0:02:58.7]} 10... b4 {[%clk 0:02:54]} 11. e4 {[%clk 0:02:53]} 11... Ba6
{[%clk 0:02:53.8]} 12. Ba4 {[%clk 0:02:47.9]} 12... Qb6 {[%clk 0:02:51.6]} 13.
exd5 {[%clk 0:02:41.8]} 13... Nxd5 {[%clk 0:02:46.6]} 14. Ne5 {[%clk 0:02:37]}
14... Rc8 {[%clk 0:02:33.8]} 15. Bxc6+ {[%clk 0:02:24.7]} 15... Rxc6 {[%clk
0:02:32.4]} 16. Nxc6 {[%clk 0:02:24.5]} 16... Qxc6 {[%clk 0:02:31.8]} 17. f5
{[%clk 0:02:20.4]} 17... bxc3 {[%clk 0:02:30.7]} 18. fxe6 {[%clk 0:02:11.4]}
18... cxd2 {[%clk 0:02:21.5]} 19. exf7+ {[%clk 0:02:10.6]} 19... Kd8 {[%clk
0:02:21.2]} 20. Bxd2 {[%clk 0:02:06.4]} 20... Be7 {[%clk 0:02:16.1]} 21. Bxa5+
{[%clk 0:02:04]} 21... Kc8 {[%clk 0:02:14.8]} 22. Qg4+ {[%clk 0:02:01.6]} 22...
Kb7 {[%clk 0:02:12.9]} 23. Qxg7 {[%clk 0:02:00.7]} 23... Rf8 {[%clk 0:02:11.5]}
24. Qxh7 {[%clk 0:01:49.7]} 24... Bf6 {[%clk 0:02:08.2]} 25. Bc3 {[%clk
0:01:42.4]} 25... Ka8 {[%clk 0:02:01.6]} 26. Rae1 {[%clk 0:01:40.8]} 26... Bb7
{[%clk 0:01:59.7]} 27. Rf2 {[%clk 0:01:27.7]} 27... Qd7 {[%clk 0:01:45]} 28. Qg8
{[%clk 0:01:20.3]} 28... Qxf7 {[%clk 0:01:44.5]} 29. Qxf7 {[%clk 0:01:11.1]}
29... Rxf7 {[%clk 0:01:45.4]} 30. Ref1 {[%clk 0:00:50.1]} 30... Kb8 {[%clk
0:01:31.4]} 31. Rf5 {[%clk 0:00:39.4]} 31... Kc7 {[%clk 0:01:23.2]} 32. R1f2
{[%clk 0:00:35.2]} 32... Kd7 {[%clk 0:01:16.2]} 33. g3 {[%clk 0:00:32.8]} 33...
Ke6 {[%clk 0:01:12.7]} 34. a4 {[%clk 0:00:31.7]} 34... Rg7 {[%clk 0:00:57.8]}
35. Rxf6+ {[%clk 0:00:17.9]} 35... Nxf6 {[%clk 0:00:58.7]} 36. d5+ {[%clk
0:00:18]} 36... Kxd5 {[%clk 0:00:56.5]} 37. Rxf6 {[%clk 0:00:16.7]} 37... Rd7
{[%clk 0:00:52.6]} 38. Rf1 {[%clk 0:00:16.1]} 38... Ke4 {[%clk 0:00:52.1]} 39.
Re1+ {[%clk 0:00:16.1]} 39... Kf3 {[%clk 0:00:51.6]} 40. Rf1+ {[%clk 0:00:16.4]}
40... Ke2 {[%clk 0:00:51.1]} 41. Rf2+ {[%clk 0:00:15.5]} 41... Ke3 {[%clk
0:00:51.3]} 42. Rf1 {[%clk 0:00:15.4]} 42... Ke2 {[%clk 0:00:49.1]} 43. Re1+
{[%clk 0:00:15.4]} 43... Kf3 {[%clk 0:00:49.3]} 44. a5 {[%clk 0:00:13.9]} 44...
Rd5 {[%clk 0:00:46.1]} 45. Rf1+ {[%clk 0:00:11.1]} 45... Ke2 {[%clk 0:00:44.9]}
46. Re1+ {[%clk 0:00:10.3]} 46... Kf3 {[%clk 0:00:45]} 47. Rf1+ {[%clk
0:00:08.4]} 47... Ke2 {[%clk 0:00:45.1]} 48. h4 {[%clk 0:00:07.6]} 48... Rd3
{[%clk 0:00:38.1]} 49. Rf2+ {[%clk 0:00:05.3]} 49... Ke3 {[%clk 0:00:38.2]} 50.
Rf4 {[%clk 0:00:05]} 50... Ke2 {[%clk 0:00:35.9]} 51. Kh2 {[%clk 0:00:03.7]}
51... Rd1 {[%clk 0:00:35.6]} 52. Kh3 {[%clk 0:00:02.9]} 52... Bf3 {[%clk
0:00:34.8]} 0-1

[Event "Late-Titled-Tuesday-Blitz-October-03-2023"]
[Site "Chess.com"]
[Date "2023.10.03"]
[Round "3"]
[White "alfianasybullina"]
[Black "ThePeasant98"]
[Result "1-0"]
[WhiteElo "2420"]
[BlackElo "2174"]
[TimeControl "180+1"]
[EndTime "14:26:47 PDT"]
[Termination "alfianasybullina won by resignation"]

1. d4 {[%clk 0:02:51.2]} 1... Nf6 {[%clk 0:02:58.9]} 2. Nf3 {[%clk 0:02:51.6]}
2... d5 {[%clk 0:02:58.7]} 3. Bg5 {[%clk 0:02:51.3]} 3... Nbd7 {[%clk
0:02:57.1]} 4. Nbd2 {[%clk 0:02:50.4]} 4... h6 {[%clk 0:02:57.3]} 5. Bh4 {[%clk
0:02:49]} 5... c5 {[%clk 0:02:54.1]} 6. e3 {[%clk 0:02:47.7]} 6... e6 {[%clk
0:02:48.1]} 7. c3 {[%clk 0:02:45.9]} 7... Be7 {[%clk 0:02:48]} 8. Bd3 {[%clk
0:02:45.6]} 8... b6 {[%clk 0:02:43.4]} 9. O-O {[%clk 0:02:45.2]} 9... Bb7 {[%clk
0:02:42.7]} 10. Qe2 {[%clk 0:02:45.3]} 10... O-O {[%clk 0:02:41.3]} 11. Ne5
{[%clk 0:02:45.2]} 11... Nxe5 {[%clk 0:02:19.1]} 12. dxe5 {[%clk 0:02:46.1]}
12... Nd7 {[%clk 0:02:19.4]} 13. Bg3 {[%clk 0:02:42.3]} 13... c4 {[%clk
0:02:17.7]} 14. Bc2 {[%clk 0:02:41.2]} 14... Qc7 {[%clk 0:02:12.8]} 15. e4
{[%clk 0:02:40.3]} 15... dxe4 {[%clk 0:01:40.3]} 16. Bxe4 {[%clk 0:02:38.4]}
16... Bxe4 {[%clk 0:01:36.9]} 17. Qxe4 {[%clk 0:02:39.3]} 17... b5 {[%clk
0:01:27.8]} 18. a4 {[%clk 0:02:37.5]} 18... Nc5 {[%clk 0:01:27]} 19. Qe2 {[%clk
0:02:28.7]} 19... Nxa4 {[%clk 0:01:27.1]} 20. Nxc4 {[%clk 0:02:28.2]} 20... Nxc3
{[%clk 0:01:06.5]} 21. bxc3 {[%clk 0:02:25.7]} 21... bxc4 {[%clk 0:01:06.8]} 22.
Ra4 {[%clk 0:02:24.6]} 22... Rfc8 {[%clk 0:01:05.3]} 23. Rfa1 {[%clk 0:02:22.4]}
23... Bc5 {[%clk 0:01:04.4]} 24. h4 {[%clk 0:02:20.9]} 24... Bb6 {[%clk
0:01:02.8]} 25. Kh2 {[%clk 0:02:20.1]} 25... Qc5 {[%clk 0:01:02.4]} 26. f3
{[%clk 0:02:18.4]} 26... Rc7 {[%clk 0:01:01.2]} 27. Rd1 {[%clk 0:02:16.3]} 27...
Rac8 {[%clk 0:00:59.5]} 28. Rd2 {[%clk 0:02:15.5]} 28... Qe3 {[%clk 0:00:57.3]}
29. Ra3 {[%clk 0:02:11.1]} 29... Qxe2 {[%clk 0:00:55.1]} 30. Rxe2 {[%clk
0:02:12]} 30... Rd7 {[%clk 0:00:54.6]} 31. Re4 {[%clk 0:02:10.5]} 31... Rd3
{[%clk 0:00:29.9]} 32. Kh3 {[%clk 0:01:57.4]} 32... Re3 {[%clk 0:00:29.9]} 33.
Rxe3 {[%clk 0:01:47.8]} 33... Bxe3 {[%clk 0:00:30.8]} 34. Kg4 {[%clk 0:01:46.4]}
34... f6 {[%clk 0:00:27.2]} 35. exf6 {[%clk 0:01:40.9]} 35... gxf6 {[%clk
0:00:27.4]} 36. Bd6 {[%clk 0:01:38.3]} 36... Kf7 {[%clk 0:00:25.6]} 37. Ra4
{[%clk 0:01:36.3]} 37... Bb6 {[%clk 0:00:25]} 38. Bf4 {[%clk 0:01:35]} 38... Kg7
{[%clk 0:00:20.2]} 39. Kh5 {[%clk 0:01:34.6]} 39... Rc5+ {[%clk 0:00:13.9]} 40.
Kg4 {[%clk 0:01:34.6]} 40... Kg6 {[%clk 0:00:13.5]} 41. h5+ {[%clk 0:01:33.2]}
41... Rxh5 {[%clk 0:00:12.5]} 42. Rxc4 {[%clk 0:01:33]} 42... Rd5 {[%clk
0:00:11.5]} 43. Kh3 {[%clk 0:01:28]} 43... h5 {[%clk 0:00:11.3]} 44. Rc8 {[%clk
0:01:22.1]} 44... e5 {[%clk 0:00:11.2]} 45. Bg3 {[%clk 0:01:20.3]} 45... Rc5
{[%clk 0:00:11.1]} 46. Rg8+ {[%clk 0:01:19.8]} 46... Kf7 {[%clk 0:00:10.5]} 47.
Rh8 {[%clk 0:01:19.9]} 47... Rxc3 {[%clk 0:00:10.5]} 48. Rxh5 {[%clk 0:01:18.3]}
48... a5 {[%clk 0:00:09.9]} 49. Rh7+ {[%clk 0:01:17.9]} 49... Kg6 {[%clk
0:00:09.8]} 50. Rb7 {[%clk 0:01:18.3]} 50... Rb3 {[%clk 0:00:09.2]} 51. Bf2
{[%clk 0:01:16.9]} 51... a4 {[%clk 0:00:08.7]} 52. Rxb6 {[%clk 0:01:13]} 52...
Rxb6 {[%clk 0:00:07.8]} 53. Bxb6 {[%clk 0:01:13.9]} 53... a3 {[%clk 0:00:08.1]}
54. Ba5 {[%clk 0:01:12.8]} 54... f5 {[%clk 0:00:07.4]} 55. Bc3 {[%clk
0:01:12.2]} 55... e4 {[%clk 0:00:06.3]} 56. Kg3 {[%clk 0:01:11.1]} 56... e3
{[%clk 0:00:04.5]} 57. f4 {[%clk 0:01:10.6]} 57... a2 {[%clk 0:00:01.6]} 58. Kf3
{[%clk 0:01:10.2]} 58... e2 {[%clk 0:00:01.4]} 59. Kxe2 {[%clk 0:01:10]} 59...
Kh5 {[%clk 0:00:02.1]} 60. Kf3 {[%clk 0:01:09.9]} 60... Kh4 {[%clk 0:00:02.3]}
61. Ba1 {[%clk 0:01:09.3]} 61... Kh5 {[%clk 0:00:02.6]} 62. g3 {[%clk
0:01:09.2]} 62... Kg6 {[%clk 0:00:02.8]} 63. g4 {[%clk 0:01:09.3]} 63... fxg4+
{[%clk 0:00:03.1]} 64. Kxg4 {[%clk 0:01:10.1]} 64... Kf7 {[%clk 0:00:03.3]} 65.
Kf5 {[%clk 0:01:09.5]} 1-0